lending/lending_fUSD_20240504
["ID","MTS","AMOUNT","RATE_DAILY","PERIOD"]
[325421542,1714860655353,-500.0,0.00041095,30]
[325421543,1714860655362,-781.11,0.00041095,30]
[325421544,1714860655372,-500.0,0.00041095,30]
[325421545,1714860655383,-563.3818538,0.00041095,30]
[325421546,1714860655394,-855.24,0.00041095,30]
[325421547,1714860655403,-835.33,0.00041095,30]
[325421548,1714860655413,-894.42,0.00041095,30]
[325421549,1714860655424,-500.0,0.00041095,30]
[325421550,1714860655434,-500.0,0.00041095,30]
[325421551,1714860655444,-500.0,0.00041095,30]
[325421552,1714860655453,-2049.92,0.00041095,30]
[325421553,1714860655463,-500.0,0.00041095,30]
[325421554,1714860655474,-500.0,0.00041095,30]
[325421555,1714860655483,-790.74,0.00041095,30]
[325421556,1714860655493,-500.0,0.00041095,30]
[325421557,1714860655503,-500.0,0.00041095,30]
[325421558,1714860655512,-1393.91,0.00041095,30]
[325421559,1714860655522,-500.0,0.00041095,30]
[325421560,1714860655653,-500.0,0.00041095,30]
[325421561,1714860655663,-500.0,0.00041095,30]
[325421562,1714860655673,-2072.3,0.00041095,30]
[325421563,1714860655683,-1160.88,0.00041095,30]
[325421564,1714860655692,-500.0,0.00041095,30]
[325421565,1714860655702,-500.0,0.00041095,30]
[325421566,1714860655711,-500.0,0.00041095,30]
[325421567,1714860655720,-631.08062721,0.00041095,30]
[325421568,1714860655731,-1929.98,0.00041095,30]
[325421569,1714860655740,-500.0,0.00041095,30]
[325421570,1714860655750,-722.18,0.00041095,30]
[325421571,1714860655760,-500.0,0.00041095,30]
[325421572,1714860655769,-500.0,0.00041095,30]
[325421573,1714860655778,-841.47,0.00041095,30]
[325421574,1714860655788,-949.71,0.00041095,30]
[325421575,1714860655798,-500.0,0.00041095,30]
[325421576,1714860655808,-500.0,0.00041095,30]
[325421577,1714860655818,-402.72826466,0.00041095,30]
[325421578,1714860655827,-500.0,0.00041095,30]
[325421579,1714860655837,-500.0,0.00041095,30]
[325421580,1714860655847,-500.0,0.00041095,30]
[325421581,1714860655856,-2811.82,0.00041095,30]
[325421582,1714860655866,-1873.6,0.00041095,30]
[325421583,1714860655876,-1627.81,0.00041095,30]
[325421584,1714860655886,-500.0,0.00041095,30]
[325421585,1714860655895,-500.0,0.00041095,30]
[325421586,1714860655904,-905.26,0.00041095,30]
[325421587,1714860655914,-1438.9,0.00041095,30]
[325421588,1714860655923,-500.0,0.00041095,30]
[325421589,1714860655932,-500.0,0.00041095,30]
[325421590,1714860655942,-500.0,0.00041095,30]
[325421591,1714860655951,-706.04,0.00041095,30]
[325421592,1714860655960,-749.78,0.00041095,30]
[325421593,1714860655969,-537.94873719,0.00041095,4]
[325421594,1714860655979,-500.0,0.00041095,30]
[325421595,1714860655989,-500.0,0.00041095,30]
[325421596,1714860655997,-500.0,0.00041095,30]
[325421597,1714860656006,-500.0,0.00041095,30]
[325421598,1714860656016,-500.0,0.00041095,30]
[325421599,1714860656025,-500.0,0.00041095,30]
[325421600,1714860656034,-2323.3,0.00041095,30]
[325421601,1714860656043,-150.0,0.00041095,30]
[325421602,1714860656052,-500.0,0.00041095,30]
[325421603,1714860656061,-1456.41,0.00041095,30]
[325421604,1714860656070,-1899.43,0.00041095,30]
[325421605,1714860656078,-943.93,0.00041095,30]
[325421606,1714860656088,-500.0,0.00041095,30]
[325421607,1714860656096,-1415.43,0.00041095,30]
[325421608,1714860656106,-997.7,0.00041095,30]
[325421609,1714860656115,-500.0,0.00041095,30]
[325421610,1714860656124,-500.0,0.00041095,30]
[325421611,1714860656133,-500.0,0.00041095,30]
[325421612,1714860656142,-932.1,0.00041095,30]
[325421613,1714860656151,-500.0,0.00041095,30]
[325421614,1714860656160,-1579.86,0.00041095,30]
[325421615,1714860656170,-500.0,0.00041095,30]
[325421616,1714860656179,-500.0,0.00041095,30]
[325421617,1714860656190,-1005.6,0.00041095,30]
[325421618,1714860656200,-500.0,0.00041095,30]
[325421619,1714860656210,-500.0,0.00041095,30]
[325421620,1714860656219,-500.0,0.00041095,30]
[325421621,1714860656228,-500.0,0.00041095,30]
[325421622,1714860656238,-1799.01,0.00041095,30]
[325421623,1714860656248,-500.0,0.00041095,30]
[325421624,1714860656258,-5070.20575415,0.00041095,30]
[325421625,1714860656268,-1227.05,0.00041095,30]
[325421626,1714860656277,-1311.49,0.00041095,30]
[325421627,1714860656286,-500.0,0.00041095,30]
[325421628,1714860656295,-1904.37,0.00041095,30]
[325421629,1714860656308,-500.0,0.00041095,30]
[325421630,1714860656318,-1606.09,0.00041095,30]
[325421631,1714860656327,-736.33,0.00041095,30]
[325421632,1714860656336,-547.15,0.00041095,30]
[325421633,1714860656346,-1043.59,0.00041095,30]
[325421634,1714860656355,-562.5120678,0.00041095,30]
[325421635,1714860656365,-500.0,0.00041095,30]
[325421636,1714860656374,-743.2,0.00041095,30]
[325421637,1714860656386,-500.0,0.00041095,30]
[325421638,1714860656395,-1767.38,0.00041095,30]
[325421639,1714860656406,-500.0,0.00041095,30]
[325421640,1714860656417,-500.0,0.00041095,30]
[325421641,1714860656426,-342.51750819,0.00041095,30]
[325421642,1714860656436,-500.0,0.00041095,30]
[325421643,1714860656447,-500.0,0.00041095,30]
[325421644,1714860656458,-3608.9,0.00041095,30]
[325421645,1714860656468,-500.0,0.00041095,30]
[325421646,1714860656480,-500.0,0.00041095,30]
[325421647,1714860656490,-2321.3,0.00041095,30]
[325421648,1714860656499,-500.0,0.00041095,30]
[325421649,1714860656510,-500.0,0.00041095,30]
[325421650,1714860656519,-844.86,0.00041095,30]
[325421651,1714860656530,-500.0,0.00041095,30]
[325421652,1714860656539,-1974.08,0.00041095,30]
[325421653,1714860656548,-500.0,0.00041095,30]
[325421654,1714860656558,-500.0,0.00041095,30]
[325421655,1714860656568,-500.0,0.00041095,30]
[325421656,1714860656578,-500.0,0.00041095,30]
[325421657,1714860656589,-893.86,0.00041095,30]
[325421658,1714860656599,-500.0,0.00041095,30]
[325421659,1714860656609,-2013.39,0.00041095,30]
[325421660,1714860656618,-971.39,0.00041095,30]
[325421661,1714860656627,-500.0,0.00041095,30]
[325421662,1714860656637,-780.89,0.00041095,30]
[325421663,1714860656646,-500.0,0.00041095,30]
[325421664,1714860656655,-1960.96,0.00041095,30]
[325421665,1714860656664,-500.0,0.00041095,30]
[325421666,1714860656673,-500.0,0.00041095,30]
[325421667,1714860656682,-780.31,0.00041095,30]
[325421668,1714860656691,-500.0,0.00041095,30]
[325421669,1714860656701,-503.13564585,0.00041095,30]
[325421670,1714860656710,-500.0,0.00041095,30]
[325421671,1714860656719,-2526.41,0.00041095,30]
[325421672,1714860656729,-500.0,0.00041095,30]
[325421673,1714860656739,-4000.0,0.00041095,30]
[325421674,1714860656748,-1501.87,0.00041095,30]
[325421675,1714860656758,-1037.75,0.00041095,30]
[325421676,1714860656767,-500.0,0.00041095,30]
[325421677,1714860656777,-500.0,0.00041095,30]
[325421678,1714860656786,-500.0,0.00041095,30]
[325421679,1714860656795,-500.0,0.00041095,30]
[325421680,1714860656805,-501.02906897,0.00041095,30]
[325421681,1714860656814,-500.0,0.00041095,30]
[325421682,1714860656823,-876.19,0.00041095,30]
[325421683,1714860656832,-2392.25,0.00041095,30]
[325421684,1714860656842,-2153.92,0.00041095,30]
[325421685,1714860656851,-500.0,0.00041095,30]
[325421686,1714860656860,-983.14,0.00041095,30]
[325421687,1714860656869,-500.0,0.00041095,30]
[325421688,1714860656879,-2373.15,0.00041095,30]
[325421689,1714860656888,-500.0,0.00041095,30]
[325421690,1714860656898,-5000.0,0.00041095,30]
[325421691,1714860656907,-726.56,0.00041095,30]
[325421692,1714860656916,-849.08,0.00041095,30]
[325421693,1714860656927,-644.18,0.00041095,30]
[325421694,1714860656936,-500.0,0.00041095,30]
[325421695,1714860656946,-500.0,0.00041095,30]
[325421696,1714860656956,-500.0,0.00041095,30]
[325421697,1714860656965,-1493.24,0.00041095,30]
[325421698,1714860656975,-1425.83,0.00041095,30]
[325421699,1714860656984,-1801.98,0.00041095,30]
[325421700,1714860656994,-548.84,0.00041095,30]
[325421701,1714860657004,-500.0,0.00041095,30]
[325421702,1714860657013,-1370.39,0.00041095,30]
[325421703,1714860657022,-594.49,0.00041095,30]
[325421704,1714860657031,-1121.4,0.00041095,30]
[325421705,1714860657040,-500.0,0.00041095,30]
[325421706,1714860657050,-3435.27,0.00041095,30]
[325421707,1714860657059,-680.95,0.00041095,30]
[325421708,1714860657069,-1972.48,0.00041095,30]
[325421709,1714860657078,-500.0,0.00041095,30]
[325421710,1714860657087,-500.0,0.00041095,30]
[325421711,1714860657096,-744.57,0.00041095,30]
[325421712,1714860657107,-500.0,0.00041095,30]
[325421713,1714860657119,-500.0,0.00041095,30]
[325421714,1714860657129,-567.56,0.00041095,30]
[325421715,1714860657139,-1708.56,0.00041095,30]
[325421716,1714860657149,-1359.48,0.00041095,30]
[325421717,1714860657158,-500.0,0.00041095,30]
[325421718,1714860657168,-1701.11,0.00041095,30]
[325421719,1714860657178,-500.0,0.00041095,30]
[325421720,1714860657188,-1087.0,0.00041095,30]
[325421721,1714860657198,-500.0,0.00041095,30]
[325421722,1714860657207,-501.42621343,0.00041095,30]
[325421723,1714860657218,-500.0,0.00041095,30]
[325421724,1714860657228,-698.89,0.00041095,30]
[325421725,1714860657240,-174.56830863,0.00041095,30]
[325421726,1714860657250,-500.0,0.00041095,30]
[325421727,1714860657260,-500.0,0.00041095,30]
[325421728,1714860657269,-1100.01,0.00041095,30]
[325421729,1714860657278,-500.0,0.00041095,30]
[325421730,1714860657288,-500.0,0.00041095,30]
[325421731,1714860657297,-500.0,0.00041095,30]
[325421732,1714860657309,-500.0,0.00041095,30]
[325421733,1714860657318,-878.11,0.00041095,30]
[325421734,1714860657327,-866.44,0.00041095,30]
[325421735,1714860657336,-701.07,0.00041095,30]
[325421736,1714860657347,-1791.7,0.00041095,30]
[325421737,1714860657358,-2772.27,0.00041095,30]
[325421738,1714860657367,-500.0,0.00041095,30]
[325421739,1714860657377,-857.9,0.00041095,30]
[325421740,1714860657388,-500.0,0.00041095,30]
[325421741,1714860657397,-500.0,0.00041095,30]
[325421742,1714860657407,-1937.87,0.00041095,30]
[325421743,1714860657418,-500.0,0.00041095,30]
[325421744,1714860657428,-500.0,0.00041095,30]
[325421745,1714860657438,-1491.55,0.00041095,30]
[325421746,1714860657448,-500.0,0.00041095,30]
[325421747,1714860657457,-500.0,0.00041095,30]
[325421748,1714860657467,-1659.16,0.00041095,30]
[325421749,1714860657476,-1847.91,0.00041095,30]
[325421750,1714860657485,-1864.7,0.00041095,30]
[325421751,1714860657494,-500.0,0.00041095,30]
[325421752,1714860657503,-1387.6,0.00041095,30]
[325421753,1714860657512,-500.0,0.00041095,30]
[325421754,1714860657521,-1021.6,0.00041095,30]
[325421755,1714860657530,-500.0,0.00041095,30]
[325421756,1714860657540,-1924.05,0.00041095,30]
[325421757,1714860657549,-500.0,0.00041095,30]
[325421758,1714860657558,-500.0,0.00041095,30]
[325421759,1714860657567,-500.0,0.00041095,30]
[325421760,1714860657577,-1660.17,0.00041095,30]
[325421761,1714860657587,-501.4029515,0.00041095,30]
[325421762,1714860657596,-500.0,0.00041095,30]
[325421763,1714860657606,-500.0,0.00041095,30]
[325421764,1714860657615,-1769.45,0.00041095,30]
[325421765,1714860657624,-500.0,0.00041095,30]
[325421766,1714860657634,-500.0,0.00041095,30]
[325421767,1714860657644,-500.0,0.00041095,30]
[325421768,1714860657653,-300.0,0.00041095,7]
[325421769,1714860657662,-500.0,0.00041095,30]
[325421770,1714860657671,-1925.71,0.00041095,30]
[325421771,1714860657680,-500.0,0.00041095,30]
[325421772,1714860657689,-508.63,0.00041095,30]
[325421773,1714860657699,-1335.07,0.00041095,30]
[325421774,1714860657708,-1009.52,0.00041095,30]
[325421775,1714860657717,-2652.34,0.00041095,30]
[325421776,1714860657726,-500.0,0.00041095,30]
[325421777,1714860657736,-6366.99,0.00041095,30]
[325421778,1714860657746,-500.0,0.00041095,30]
[325421779,1714860657755,-1979.86,0.00041095,30]
[325421780,1714860657764,-1293.92,0.00041095,30]
[325421781,1714860657774,-500.0,0.00041095,30]
[325421782,1714860657783,-500.0,0.00041095,30]
[325421783,1714860657793,-500.0,0.00041095,30]
[325421784,1714860657802,-1299.82,0.00041095,30]
[325421785,1714860657811,-500.0,0.00041095,30]
[325421786,1714860657820,-500.0,0.00041095,30]
[325421787,1714860657829,-2036.32,0.00041095,30]
[325421788,1714860657838,-1089.73,0.00041095,30]
[325421789,1714860657847,-1929.54,0.00041095,30]
[325421790,1714860657856,-1571.51,0.00041095,30]
[325421791,1714860657865,-3453.22,0.00041095,30]
[325421792,1714860657874,-500.0,0.00041095,30]
[325421793,1714860657884,-530.41314315,0.00041095,30]
[325421794,1714860657893,-500.0,0.00041095,30]
[325421795,1714860657902,-4091.87,0.00041095,30]
[325421796,1714860657911,-2746.05,0.00041095,30]
[325421797,1714860657920,-500.0,0.00041095,30]
[325421798,1714860657930,-611.45,0.00041095,30]
[325421799,1714860657939,-500.0,0.00041095,30]
[325421800,1714860657949,-500.0,0.00041095,30]
[325421801,1714860657958,-787.18,0.00041095,30]
[325421802,1714860657967,-823.3,0.00041095,30]
[325421803,1714860657976,-560.34,0.00041095,30]
[325421804,1714860657985,-500.0,0.00041095,30]
[325421805,1714860657994,-500.0,0.00041095,30]
[325421806,1714860658003,-500.0,0.00041095,30]
[325421807,1714860658012,-500.0,0.00041095,30]
[325421808,1714860658022,-500.0,0.00041095,30]
[325421809,1714860658031,-500.0,0.00041095,30]
[325421810,1714860658040,-581.56911975,0.00041095,30]
[325421811,1714860658049,-500.0,0.00041095,30]
[325421812,1714860658058,-500.0,0.00041095,30]
[325421813,1714860658068,-2041.23,0.00041095,30]
[325421814,1714860658078,-500.0,0.00041095,30]
[325421815,1714860658087,-3585.5,0.00041095,30]
[325421816,1714860658096,-500.0,0.00041095,30]
[325421817,1714860658106,-500.0,0.00041095,30]
[325421818,1714860658115,-1794.07,0.00041095,30]
[325421819,1714860658125,-500.0,0.00041095,30]
[325421820,1714860658134,-500.0,0.00041095,30]
[325421821,1714860658143,-500.0,0.00041095,30]
[325421822,1714860658152,-504.49335913,0.00041095,30]
[325421823,1714860658162,-1488.46,0.00041095,30]
[325421824,1714860658171,-742.9,0.00041095,30]
[325421825,1714860658180,-622.2,0.00041095,30]
[325421826,1714860658189,-7331.95,0.00041095,30]
[325421827,1714860658198,-500.0,0.00041095,30]
[325421828,1714860658207,-500.0,0.00041095,30]
[325421829,1714860658216,-607.01163965,0.00041095,30]
[325421830,1714860658226,-1178.23,0.00041095,30]
[325421831,1714860658235,-500.51707628,0.00041095,30]
[325421832,1714860658245,-1445.46,0.00041095,30]
[325421833,1714860658255,-1404.86,0.00041095,30]
[325421834,1714860658268,-1627.08,0.00041095,30]
[325421835,1714860658278,-500.0,0.00041095,30]
[325421836,1714860658288,-923.04,0.00041095,30]
[325421837,1714860658298,-500.0,0.00041095,30]
[325421838,1714860658311,-725.87,0.00041095,30]
[325421839,1714860658320,-10114.84,0.00041095,30]
[325421840,1714860658329,-500.0,0.00041095,30]
[325421841,1714860658339,-410.71410414,0.00041095,30]
[325421842,1714860658349,-3557.63,0.00041095,30]
[325421843,1714860658359,-62829.34,0.00041095,30]
[325421844,1714860658369,-583.3414912,0.00041095,30]
[325421845,1714860658378,-5126.45,0.00041095,30]
[325421846,1714860658389,-1188.13,0.00041095,30]
[325421847,1714860658401,-1299.91,0.00041095,30]
[325421848,1714860658412,-500.0,0.00041095,30]
[325421849,1714860658422,-1003.73,0.00041095,30]
[325421850,1714860658431,-1509.78,0.00041095,30]
[325421851,1714860658441,-500.0,0.00041095,30]
[325421852,1714860658451,-500.0,0.00041095,30]
[325421853,1714860658463,-500.0,0.00041095,30]
[325421854,1714860658473,-500.0,0.00041095,30]
[325421855,1714860658483,-500.0,0.00041095,31]
[325421856,1714860658492,-1534.05,0.00041095,30]
[325421857,1714860658503,-500.0,0.00041095,32]
[325421858,1714860658514,-500.0,0.00041095,33]
[325421859,1714860658525,-500.0,0.00041095,34]
[325421860,1714860658537,-500.0,0.00041095,35]
[325421861,1714860658547,-500.0,0.00041095,30]
[325421862,1714860658558,-500.0,0.00041095,36]
[325421863,1714860658569,-5013.65,0.00041095,30]
[325421864,1714860658579,-202.89787963,0.00041095,37]
[325421865,1714860658589,-500.0,0.00041095,30]
[325421866,1714860658599,-500.0,0.00041095,30]
[325421867,1714860658608,-3102.22,0.00041095,30]
[325421868,1714860658618,-500.0,0.00041095,31]
[325421869,1714860658628,-500.0,0.00041095,32]
[325421870,1714860658637,-500.0,0.00041095,33]
[325421871,1714860658647,-500.0,0.00041095,30]
[325421872,1714860658656,-14131.61,0.00041095,30]
[325421873,1714860658666,-500.0,0.00041095,30]
[325421874,1714860658675,-1420.14,0.00041095,30]
[325421875,1714860658685,-500.0,0.00041095,34]
[325421876,1714860658696,-2125.45,0.00041095,30]
[325421877,1714860658707,-996.99,0.00041095,30]
[325421878,1714860658716,-1389.72,0.00041095,30]
[325421879,1714860658726,-1569.3,0.00041095,30]
[325421880,1714860658736,-500.0,0.00041095,30]
[325421881,1714860658746,-500.0,0.00041095,30]
[325421882,1714860658756,-500.0,0.00041095,30]
[325421883,1714860658767,-2214.5,0.00041095,30]
[325421884,1714860658778,-2367.66,0.00041095,30]
[325421885,1714860658788,-500.0,0.00041095,30]
[325421886,1714860658799,-500.0,0.00041095,30]
[325421887,1714860658808,-500.0,0.00041095,30]
[325421888,1714860658818,-2486.35,0.00041095,30]
[325421889,1714860658828,-1586.87,0.00041095,30]
[325421890,1714860658837,-1146.72,0.00041095,30]
[325421891,1714860658848,-589.35829921,0.00041095,30]
[325421892,1714860658858,-852.22,0.00041095,30]
[325421893,1714860658867,-1059.44,0.00041095,30]
[325421894,1714860658877,-500.0,0.00041095,30]
[325421895,1714860658889,-3789.36,0.00041095,30]
[325421896,1714860658901,-500.0,0.00041095,30]
[325421897,1714860658911,-500.0,0.00041095,30]
[325421898,1714860658921,-6467.08,0.00041095,30]
[325421899,1714860658932,-59176.82,0.00041095,30]
[325421900,1714860658942,-500.0,0.00041095,30]
[325421901,1714860658952,-500.0,0.00041095,30]
[325421902,1714860658962,-500.0,0.00041095,30]
[325421903,1714860658972,-500.0,0.00041095,30]
[325421904,1714860658982,-4428.08,0.00041095,30]
[325421905,1714860658992,-2112.81,0.00041095,30]
[325421906,1714860659001,-689.34,0.00041095,30]
[325421907,1714860659011,-500.0,0.00041095,30]
[325421908,1714860659020,-1146.54,0.00041095,30]
[325421909,1714860659030,-501.53206647,0.00041095,30]
[325421910,1714860659040,-500.0,0.00041095,30]
[325421911,1714860659049,-500.0,0.00041095,30]
[325421912,1714860659058,-672.21,0.00041095,30]
[325421913,1714860659068,-1884.69,0.00041095,30]
[325421914,1714860659077,-500.0,0.00041095,30]
[325421915,1714860659087,-1536.21,0.00041095,30]
[325421916,1714860659096,-500.0,0.00041095,30]
[325421917,1714860659105,-839.38,0.00041095,30]
[325421918,1714860659115,-500.0,0.00041095,30]
[325421919,1714860659124,-10298.17,0.00041095,30]
[325421920,1714860659134,-5734.53,0.00041095,30]
[325421921,1714860659145,-500.0,0.00041095,30]
[325421922,1714860659156,-500.0,0.00041095,30]
[325421923,1714860659166,-500.0,0.00041095,30]
[325421924,1714860659175,-490.90826153,0.00041095,30]
[325421925,1714860659185,-500.0,0.00041095,30]
[325421926,1714860659195,-521.01,0.00041095,30]
[325421927,1714860659207,-1126.26,0.00041095,30]
[325421928,1714860659217,-500.0,0.00041095,30]
[325421929,1714860659228,-869.13,0.00041095,30]
[325421930,1714860659237,-500.0,0.00041095,30]
[325421931,1714860659247,-1209.5,0.00041095,30]
[325421932,1714860659258,-500.0,0.00041095,30]
[325421933,1714860659268,-500.0,0.00041095,30]
[325421934,1714860659280,-1788.88,0.00041095,30]
[325421935,1714860659291,-1345.19,0.00041095,30]
[325421936,1714860659302,-551.07,0.00041095,30]
[325421937,1714860659313,-2991.97,0.00041095,30]
[325421938,1714860659323,-500.0,0.00041095,30]
[325421939,1714860659332,-5039.66,0.00041095,30]
[325421940,1714860659342,-500.0,0.00041095,30]
[325421941,1714860659353,-13806.4,0.00041095,30]
[325421942,1714860659362,-2216.32,0.00041095,30]
[325421943,1714860659372,-12393.71,0.00041095,30]
[325421944,1714860659384,-1015.19,0.00041095,30]
[325421945,1714860659394,-662.2,0.00041095,30]
[325421946,1714860659404,-500.0,0.00041095,30]
[325421947,1714860659416,-500.0,0.00041095,30]
[325421948,1714860659426,-500.0,0.00041095,30]
[325421949,1714860659435,-1424.32,0.00041095,30]
[325421950,1714860659445,-1451.38,0.00041095,30]
[325421951,1714860659456,-6557.21,0.00041095,30]
[325421952,1714860659466,-509.16,0.00041095,30]
[325421953,1714860659475,-502.66073985,0.00041095,30]
[325421954,1714860659487,-502.35211907,0.00041095,30]
[325421955,1714860659497,-3943.8,0.00041095,30]
[325421956,1714860659506,-500.0,0.00041095,30]
[325421957,1714860659515,-500.0,0.00041095,30]
[325421958,1714860659526,-1403.73,0.00041095,30]
[325421959,1714860659536,-501.36852304,0.00041095,30]
[325421960,1714860659547,-5006.38,0.00041095,30]
[325421961,1714860659557,-9705.37,0.00041095,30]
[325421962,1714860659567,-500.0,0.00041095,30]
[325421963,1714860659577,-500.0,0.00041095,30]
[325421964,1714860659587,-896.54,0.00041095,30]
[325421965,1714860659597,-500.0,0.00041095,30]
[325421966,1714860659607,-500.44201957,0.00041095,30]
[325421967,1714860659617,-4136.28,0.00041095,30]
[325421968,1714860659627,-808.46,0.00041095,30]
[325421969,1714860659637,-500.0,0.00041095,30]
[325421970,1714860659647,-13775.03,0.00041095,30]
[325421971,1714860659657,-472.42981533,0.00041095,30]
[325421972,1714860659668,-500.0,0.00041095,30]
[325421973,1714860659678,-4061.11,0.00041095,30]
[325421974,1714860659688,-500.0,0.00041095,30]
[325421975,1714860659699,-500.0,0.00041095,30]
[325421976,1714860659709,-500.0,0.00041095,30]
[325421977,1714860659718,-500.0,0.00041095,30]
[325421978,1714860659728,-500.0,0.00041095,30]
[325421979,1714860659738,-500.0,0.00041095,30]
[325421980,1714860659748,-1956.04,0.00041095,30]
[325421981,1714860659758,-6429.13,0.00041095,30]
[325421982,1714860659770,-500.0,0.00041095,30]
[325421983,1714860659780,-41104.46,0.00041095,30]
[325421984,1714860659791,-1034.15,0.00041095,30]
[325421985,1714860659802,-9001.89,0.00041095,30]
[325421986,1714860659812,-500.0,0.00041095,30]
[325421987,1714860659822,-1713.75,0.00041095,30]
[325421988,1714860659832,-502.21143931,0.00041095,30]
[325421989,1714860659843,-1766.89,0.00041095,30]
[325421990,1714860659855,-500.0,0.00041095,30]
[325421991,1714860659865,-500.0,0.00041095,30]
[325421992,1714860659877,-859.43,0.00041095,30]
[325421993,1714860659888,-500.0,0.00041095,30]
[325421994,1714860659900,-834.87,0.00041095,30]
[325421995,1714860659910,-1129.96,0.00041095,30]
[325421996,1714860659920,-500.0,0.00041095,30]
[325421997,1714860659931,-874.71,0.00041095,30]
[325421998,1714860659941,-500.0,0.00041095,30]
[325421999,1714860659951,-28612.46,0.00041095,30]
[325422000,1714860659962,-515.88445963,0.00041095,30]
[325422001,1714860659980,-1080.4,0.00041095,30]
[325422002,1714860659991,-23528.2,0.00041095,30]
[325422003,1714860660000,-157.08331946,0.00041095,30]
[325422004,1714860660010,-2059.88,0.00041095,30]
[325422005,1714860660020,-500.8297814,0.00041095,30]
[325422006,1714860660033,-500.0,0.00041095,30]
[325422007,1714860660042,-3746.63,0.00041095,30]
[325422008,1714860660053,-500.0,0.00041095,30]
[325422009,1714860660064,-1057.22,0.00041095,30]
[325422010,1714860660074,-500.0,0.00041095,30]
[325422011,1714860660085,-500.0,0.00041095,30]
[325422012,1714860660095,-847.4,0.00041095,30]
[325422013,1714860660105,-500.0,0.00041095,30]
[325422014,1714860660115,-500.0,0.00041095,30]
[325422015,1714860660126,-4656.73,0.00041095,30]
[325422016,1714860660135,-1825.93,0.00041095,30]
[325422017,1714860660145,-3613.79,0.00041095,30]
[325422018,1714860660155,-500.0,0.00041095,30]
[325422019,1714860660164,-8457.65,0.00041095,30]
[325422020,1714860660174,-500.41580316,0.00041095,30]
[325422021,1714860660184,-2103.43,0.00041095,30]
[325422022,1714860660194,-1327.21,0.00041095,30]
[325422023,1714860660204,-17573.58,0.00041095,30]
[325422024,1714860660214,-824.52,0.00041095,30]
[325422025,1714860660224,-1380.99,0.00041095,30]
[325422026,1714860660235,-730.77,0.00041095,30]
[325422027,1714860660244,-3107.97,0.00041095,30]
[325422028,1714860660254,-1434.82,0.00041095,30]
[325422029,1714860660264,-5593.44,0.00041095,30]
[325422030,1714860660274,-6349.15,0.00041095,30]
[325422031,1714860660284,-501.50594883,0.00041095,30]
[325422032,1714860660293,-500.0,0.00041095,30]
[325422033,1714860660305,-1562.04,0.00041095,30]
[325422034,1714860660316,-500.0,0.00041095,30]
[325422035,1714860660326,-680.05,0.00041095,30]
[325422036,1714860660336,-500.0,0.00041095,2]
[325422037,1714860660347,-737.85,0.00041095,30]
[325422038,1714860660356,-3211.12,0.00041095,30]
[325422039,1714860660366,-500.0,0.00041095,30]
[325422040,1714860660375,-978.75,0.00041095,30]
[325422041,1714860660386,-500.0,0.00041095,30]